Workbook

Sheet Sheet1
B1: Sales Record of Mars Group
D3: Sales | I3: Sales Growth
D4: 2016 | E4: 2017 | F4: 2018 | G4: 2019 | I4: 2016-2017 | J4: 2017-2018 | K4: 2018-2019
B5: Product Name | C5: Desktop | D5: 150000 | E5: 189000 | F5: 102000 | G5: 287000 | I5: =(E5-D5)/D5 -> 0.26 | J5: =(F5-E5)/E5 -> -0.4603174603 | K5: =(G5-F5)/F5 -> 1.81372549
C6: Laptop | D6: 264000 | E6: 542000 | F6: 665000 | G6: 303000 | I6: =(E6-D6)/D6 -> 1.053030303 | J6: =(F6-E6)/E6 -> 0.2269372694 | K6: =(G6-F6)/F6 -> -0.5443609023
C7: Smartphone | D7: 984000 | E7: 1207000 | F7: 1553000 | G7: 832000 | I7: =(E7-D7)/D7 -> 0.2266260163 | J7: =(F7-E7)/E7 -> 0.2866611433 | K7: =(G7-F7)/F7 -> -0.4642627173
C8: Landphone | D8: 128000 | E8: 65000 | F8: 89000 | G8: 198000 | I8: =(E8-D8)/D8 -> -0.4921875 | J8: =(F8-E8)/E8 -> 0.3692307692 | K8: =(G8-F8)/F8 -> 1.224719101
C9: Telephone | D9: 288000 | E9: 387000 | F9: 456000 | G9: 693000 | I9: =(E9-D9)/D9 -> 0.34375 | J9: =(F9-E9)/E9 -> 0.1782945736 | K9: =(G9-F9)/F9 -> 0.5197368421
C10: Refrigerator | D10: 572000 | E10: 561000 | F10: 532000 | G10: 476000 | I10: =(E10-D10)/D10 -> -0.01923076923 | J10: =(F10-E10)/E10 -> -0.05169340463 | K10: =(G10-F10)/F10 -> -0.1052631579
C11: Television | D11: 489000 | E11: 499000 | F11: 503000 | G11: 772000 | I11: =(E11-D11)/D11 -> 0.02044989775 | J11: =(F11-E11)/E11 -> 0.008016032064 | K11: =(G11-F11)/F11 -> 0.5347912525
C12: Table Fan | D12: 965000 | E12: 1301000 | F12: 1567000 | G12: 1309000 | I12: =(E12-D12)/D12 -> 0.3481865285 | J12: =(F12-E12)/E12 -> 0.2044581091 | K12: =(G12-F12)/F12 -> -0.16464582
C13: Microwave Oven | D13: 773000 | E13: 1007000 | F13: 1047000 | G13: 1597000 | I13: =(E13-D13)/D13 -> 0.3027166882 | J13: =(F13-E13)/E13 -> 0.03972194638 | K13: =(G13-F13)/F13 -> 0.5253104107
C14: DVD | D14: 102000 | E14: 86000 | F14: 88000 | G14: 53000 | I14: =(E14-D14)/D14 -> -0.1568627451 | J14: =(F14-E14)/E14 -> 0.02325581395 | K14: =(G14-F14)/F14 -> -0.3977272727

Sheet Sheet2
